[Event "ONJK 2024 ABC"]
[Site "Velp, Netherlands"]
[Date "2024.08.05"]
[Round "5.12"]
[White "Zootjes, Aaron"]
[Black "Vagenende, Lars"]
[Result "1-0"]
[TimeControl "90 minutes + 30 seconds"]
[WhiteElo "1639"]
[BlackElo "1686"]

1. e4 {[%clk 01:30:56]} {[%emt 00:00:04]} e5 {[%clk 01:30:55]} {[%emt
00:00:06]} 2. Nf3 {[%clk 01:31:16]} {[%emt 00:00:10]} Nc6 {[%clk 01:31:10]}
{[%emt 00:00:14]} 3. Bb5 {[%clk 01:31:33]} {[%emt 00:00:14]} a6 {[%clk
01:31:13]} {[%emt 00:00:27]} 4. Ba4 {[%clk 01:31:57]} {[%emt 00:00:05]} Nf6
{[%clk 01:31:18]} {[%emt 00:00:25]} 5. O-O {[%clk 01:32:11]} {[%emt 00:00:16]}
b5 {[%clk 01:28:02]} {[%emt 00:03:47]} 6. Bb3 {[%clk 01:32:27]} {[%emt
00:00:14]} Bc5 {[%clk 01:27:59]} {[%emt 00:00:32]} 7. c3 {[%clk 01:30:31]}
{[%emt 00:02:27]} O-O {[%clk 01:23:36]} {[%emt 00:04:53]} 8. d4 {[%clk
01:28:35]} {[%emt 00:02:26]} Bb6 {[%clk 01:23:20]} {[%emt 00:00:46]} 9. Bg5
{[%clk 01:27:43]} {[%emt 00:01:22]} Re8 {[%clk 01:19:50]} {[%emt 00:04:00]} 10.
Bd5 {[%clk 01:25:14]} {[%emt 00:02:58]} h6 {[%clk 01:16:09]} {[%emt 00:04:11]}
11. Bh4 {[%clk 01:23:20]} {[%emt 00:02:25]} g5 {[%clk 01:15:17]} {[%emt
00:01:22]} 12. Bxc6 {[%clk 01:16:58]} {[%emt 00:06:53]} dxc6 {[%clk 01:15:21]}
{[%emt 00:00:25]} 13. Nxg5 {[%clk 01:14:58]} {[%emt 00:02:30]} hxg5 {[%clk
01:15:00]} {[%emt 00:00:51]} 14. Bxg5 {[%clk 01:15:23]} {[%emt 00:00:06]} Qd6
{[%clk 01:13:05]} {[%emt 00:02:25]} 15. Qf3 {[%clk 01:11:36]} {[%emt 00:04:17]}
Nh7 {[%clk 01:11:22]} {[%emt 00:02:11]} 16. dxe5 {[%clk 01:03:41]} {[%emt
00:08:27]} Nxg5 {[%clk 01:09:45]} {[%emt 00:02:07]} 17. exd6 {[%clk 01:03:11]}
{[%emt 00:01:00]} Nxf3+ {[%clk 01:10:03]} {[%emt 00:00:11]} 18. gxf3 {[%clk
01:03:34]} {[%emt 00:00:07]} cxd6 {[%clk 01:10:23]} {[%emt 00:00:10]} 19. Nd2
{[%clk 01:01:34]} {[%emt 00:02:31]} Bh3 {[%clk 01:10:04]} {[%emt 00:00:49]} 20.
Rfe1 {[%clk 01:01:17]} {[%emt 00:00:47]} Kh7 {[%clk 01:10:00]} {[%emt
00:00:33]} 21. Nf1 {[%clk 01:00:21]} {[%emt 00:01:26]} Re6 {[%clk 01:06:14]}
{[%emt 00:04:15]} 22. Re2 {[%clk 00:59:22]} {[%emt 00:01:30]} Rg8+ {[%clk
01:02:57]} {[%emt 00:03:47]} 23. Ng3 {[%clk 00:58:47]} {[%emt 00:01:06]} f5
{[%clk 01:03:01]} {[%emt 00:00:25]} 24. f4 {[%clk 00:56:41]} {[%emt 00:02:36]}
Rxe4 {[%clk 01:01:47]} {[%emt 00:01:44]} 25. Rae1 {[%clk 00:55:17]} {[%emt
00:01:55]} Rxf4 {[%clk 01:00:30]} {[%emt 00:01:46]} 26. Re7+ {[%clk 00:54:22]}
{[%emt 00:01:26]} Rg7 {[%clk 01:00:37]} {[%emt 00:00:23]} 27. Rxg7+ {[%clk
00:54:45]} {[%emt 00:00:07]} Kxg7 {[%clk 01:00:58]} {[%emt 00:00:09]} 28. Nh5+
{[%clk 00:55:10]} {[%emt 00:00:04]} Kf7 {[%clk 00:59:33]} {[%emt 00:01:54]} 29.
Nxf4 {[%clk 00:55:11]} {[%emt 00:00:29]} Bg4 {[%clk 00:59:42]} {[%emt
00:00:21]} 30. Kg2 {[%clk 00:55:13]} {[%emt 00:00:29]} Bc7 {[%clk 00:59:03]}
{[%emt 00:01:09]} 31. f3 {[%clk 00:55:06]} {[%emt 00:00:37]} d5 {[%clk
00:57:53]} {[%emt 00:01:39]} 32. fxg4 {[%clk 00:54:54]} {[%emt 00:00:42]} Bxf4
{[%clk 00:58:07]} {[%emt 00:00:17]} 33. gxf5 {[%clk 00:55:01]} {[%emt
00:00:23]} Kf6 {[%emt 00:02:38]} 34. Re6+ {[%clk 00:52:44]} {[%emt 00:02:21]}
Kxf5 {[%clk 00:56:42]} {[%emt 00:00:13]} 35. Rxc6 {[%clk 00:53:05]} {[%emt
00:00:09]} Ke4 {[%clk 00:56:09]} {[%emt 00:01:04]} 36. Rxa6 {[%clk 00:53:06]}
{[%emt 00:00:28]} Bc1 {[%clk 00:56:15]} {[%emt 00:00:23]} 37. b3 {[%clk
00:53:00]} {[%emt 00:00:38]} Bb2 {[%clk 00:56:04]} {[%emt 00:00:40]} 38. Rc6
{[%clk 00:53:11]} {[%emt 00:00:19]} b4 {[%clk 00:52:38]} {[%emt 00:03:57]} 39.
cxb4 {[%clk 00:51:18]} {[%emt 00:02:22]} d4 {[%clk 00:52:56]} {[%emt 00:00:12]}
40. Kf2 {[%clk 00:50:55]} {[%emt 00:00:54]} d3 {[%clk 00:51:55]} {[%emt
00:01:30]} 41. Rc4+ {[%clk 00:50:27]} {[%emt 00:00:58]} Bd4+ {[%clk 00:50:56]}
{[%emt 00:01:28]} 42. Ke1 {[%clk 00:50:42]} {[%emt 00:00:17]} Ke3 {[%clk
00:50:28]} {[%emt 00:00:57]} 43. Rxd4 {[%clk 00:51:06]} {[%emt 00:00:05]} 1-0

[Event "ONJK 2024 ABC"]
[Site "Velp, Netherlands"]
[Date "2024.08.05"]
[Round "5.13"]
[White "Roebers, Bregje"]
[Black "Georgopoulos, Mylo"]
[Result "1-0"]
[TimeControl "90 minutes + 30 seconds"]
[WhiteElo "1796"]
[BlackElo "1776"]

1. e4 {[%clk 01:30:54]} {[%emt 00:00:05]} c6 {[%clk 01:30:59]} {[%emt
00:00:02]} 2. d4 {[%clk 01:30:52]} {[%emt 00:00:29]} d5 {[%clk 01:31:25]}
{[%emt 00:00:07]} 3. exd5 {[%clk 01:30:33]} {[%emt 00:00:48]} cxd5 {[%clk
01:31:48]} {[%emt 00:00:07]} 4. Bd3 {[%clk 01:30:05]} {[%emt 00:00:58]} Nc6
{[%clk 01:32:00]} {[%emt 00:00:18]} 5. c3 {[%clk 01:29:35]} {[%emt 00:00:56]}
Nf6 {[%clk 01:31:32]} {[%emt 00:01:02]} 6. Bf4 {[%clk 01:27:52]} {[%emt
00:02:13]} e6 {[%clk 01:30:57]} {[%emt 00:01:05]} 7. Nf3 {[%clk 01:26:03]}
{[%emt 00:02:19]} Bd6 {[%clk 01:30:27]} {[%emt 00:01:00]} 8. Bxd6 {[%clk
01:20:59]} {[%emt 00:05:34]} Qxd6 {[%clk 01:30:42]} {[%emt 00:00:16]} 9. O-O
{[%clk 01:20:57]} {[%emt 00:00:31]} O-O {[%clk 01:30:56]} {[%emt 00:00:16]} 10.
Nbd2 {[%clk 01:20:22]} {[%emt 00:01:05]} Bd7 {[%clk 01:26:06]} {[%emt
00:05:22]} 11. Re1 {[%clk 01:18:13]} {[%emt 00:02:39]} b5 {[%clk 01:20:04]}
{[%emt 00:06:32]} 12. Bxb5 {[%clk 01:11:51]} {[%emt 00:06:52]} Rfb8 {[%clk
01:20:03]} {[%emt 00:00:31]} 13. Bxc6 {[%clk 01:08:02]} {[%emt 00:04:18]} Bxc6
{[%clk 01:19:57]} {[%emt 00:00:37]} 14. Nb3 {[%clk 01:07:43]} {[%emt 00:00:49]}
Ba4 {[%clk 01:18:24]} {[%emt 00:02:04]} 15. Nfd2 {[%clk 01:05:25]} {[%emt
00:02:47]} a5 {[%clk 01:16:11]} {[%emt 00:02:43]} 16. Qf3 {[%clk 01:02:12]}
{[%emt 00:03:43]} Bxb3 {[%clk 01:15:27]} {[%emt 00:01:15]} 17. axb3 {[%clk
01:00:57]} {[%emt 00:01:45]} Ra7 {[%clk 01:11:37]} {[%emt 00:04:21]} 18. Ra3
{[%clk 00:58:22]} {[%emt 00:03:05]} Qc7 {[%clk 01:05:27]} {[%emt 00:06:40]} 19.
Rea1 {[%clk 00:54:39]} {[%emt 00:04:12]} Rba8 {[%clk 00:54:57]} {[%emt
00:11:01]} 20. R1a2 {[%clk 00:48:57]} {[%emt 00:06:11]} Ne8 {[%clk 00:51:13]}
{[%emt 00:04:14]} 21. Qd1 {[%clk 00:47:15]} {[%emt 00:02:12]} Nd6 {[%clk
00:49:57]} {[%emt 00:01:47]} 22. Qa1 {[%clk 00:43:39]} {[%emt 00:04:06]} Nc8
{[%clk 00:49:08]} {[%emt 00:01:19]} 23. Nf1 {[%clk 00:36:12]} {[%emt 00:07:57]}
Nd6 {[%clk 00:42:34]} {[%emt 00:07:04]} 24. b4 {[%clk 00:32:43]} {[%emt
00:03:52]} Nb5 {[%clk 00:39:25]} {[%emt 00:03:45]} 25. Rxa5 {[%clk 00:32:13]}
{[%emt 00:01:00]} Rxa5 {[%clk 00:33:58]} {[%emt 00:05:58]} 26. Rxa5 {[%clk
00:31:47]} {[%emt 00:00:55]} Rxa5 {[%clk 00:33:45]} {[%emt 00:00:42]} 27. bxa5
{[%clk 00:31:40]} {[%emt 00:00:38]} f6 {[%clk 00:31:15]} {[%emt 00:03:01]} 28.
Nd2 {[%clk 00:29:41]} {[%emt 00:02:29]} Kf7 {[%clk 00:29:17]} {[%emt 00:02:29]}
29. Qa4 {[%clk 00:28:24]} {[%emt 00:01:47]} Qf4 {[%clk 00:26:23]} {[%emt
00:03:24]} 30. Nb3 {[%clk 00:19:57]} {[%emt 00:08:57]} Nd6 {[%clk 00:25:31]}
{[%emt 00:01:21]} 31. Qa1 {[%clk 00:17:50]} {[%emt 00:02:37]} Ne4 {[%clk
00:22:01]} {[%emt 00:04:00]} 32. Qe1 {[%clk 00:16:51]} {[%emt 00:01:29]} g5
{[%clk 00:18:09]} {[%emt 00:04:23]} 33. Nc5 {[%clk 00:15:07]} {[%emt 00:02:14]}
Nxc5 {[%clk 00:16:53]} {[%emt 00:01:47]} 34. dxc5 {[%clk 00:15:31]} {[%emt
00:00:06]} Qa4 {[%clk 00:17:07]} {[%emt 00:00:16]} 35. b4 {[%clk 00:15:12]}
{[%emt 00:00:48]} e5 {[%clk 00:17:03]} {[%emt 00:00:35]} 36. Kf1 {[%clk
00:12:21]} {[%emt 00:03:20]} d4 {[%clk 00:15:58]} {[%emt 00:01:36]} 37. cxd4
{[%clk 00:10:59]} {[%emt 00:01:52]} Qb5+ {[%clk 00:15:31]} {[%emt 00:00:57]} 38.
Qe2 {[%clk 00:09:31]} {[%emt 00:01:57]} Qxb4 {[%clk 00:15:53]} {[%emt
00:00:09]} 39. Qa2+ {[%clk 00:08:22]} {[%emt 00:01:39]} Ke7 {[%clk 00:15:53]}
{[%emt 00:00:30]} 40. dxe5 {[%clk 00:07:48]} {[%emt 00:01:04]} fxe5 {[%clk
00:15:14]} {[%emt 00:01:09]} 41. a6 {[%clk 00:06:57]} {[%emt 00:01:21]} Qd4
{[%clk 00:14:20]} {[%emt 00:01:24]} 42. g3 {[%clk 00:05:20]} {[%emt 00:02:06]}
g4 {[%clk 00:13:55]} {[%emt 00:00:56]} 43. Qb1 {[%clk 00:03:46]} {[%emt
00:02:04]} Qc4+ {[%clk 00:13:25]} {[%emt 00:01:00]} 44. Kg2 {[%clk 00:03:12]}
{[%emt 00:01:02]} Qxa6 {[%clk 00:11:01]} {[%emt 00:02:56]} 45. Qxh7+ {[%clk
00:03:35]} {[%emt 00:00:07]} Kd8 {[%clk 00:11:12]} {[%emt 00:00:19]} 46. Qg8+
{[%clk 00:03:40]} {[%emt 00:00:25]} Kc7 {[%clk 00:11:25]} {[%emt 00:00:17]} 47.
Qxg4 {[%clk 00:03:14]} {[%emt 00:00:56]} Qa8+ {[%clk 00:10:47]} {[%emt
00:01:08]} 48. Qf3 {[%clk 00:03:25]} {[%emt 00:00:19]} e4 {[%clk 00:11:12]}
{[%emt 00:00:05]} 49. Qe3 {[%clk 00:03:44]} {[%emt 00:00:10]} Qd5 {[%clk
00:11:24]} {[%emt 00:00:19]} 50. g4 {[%clk 00:03:11]} {[%emt 00:01:03]} Kd7
{[%clk 00:10:42]} {[%emt 00:01:12]} 51. h4 {[%clk 00:03:08]} {[%emt 00:00:33]}
Qe6 {[%clk 00:10:13]} {[%emt 00:01:00]} 52. g5 {[%clk 00:01:48]} {[%emt
00:01:49]} Ke8 {[%clk 00:09:33]} {[%emt 00:01:10]} 53. Qg3 {[%clk 00:01:48]}
{[%emt 00:00:29]} Kf7 {[%clk 00:09:08]} {[%emt 00:00:56]} 54. h5 {[%clk
00:01:26]} {[%emt 00:00:52]} Qd5 {[%clk 00:08:01]} {[%emt 00:01:37]} 55. Kh2
{[%clk 00:01:22]} {[%emt 00:00:34]} Qxc5 {[%clk 00:08:03]} {[%emt 00:00:28]} 56.
Qf4+ {[%clk 00:01:18]} {[%emt 00:00:33]} Kg8 {[%clk 00:07:42]} {[%emt
00:00:52]} 57. h6 {[%clk 00:01:16]} {[%emt 00:00:32]} Qb6 {[%clk 00:06:55]}
{[%emt 00:01:17]} 58. Qf5 {[%clk 00:00:56]} {[%emt 00:00:49]} e3 {[%clk
00:05:30]} {[%emt 00:01:56]} 59. h7+ {[%clk 00:00:55]} {[%emt 00:00:30]} Kh8
{[%clk 00:05:54]} {[%emt 00:00:07]} 60. g6 {[%clk 00:00:39]} {[%emt 00:00:46]}
Qd6+ {[%clk 00:01:27]} {[%emt 00:04:57]} 61. Kh3 {[%clk 00:00:43]} {[%emt
00:00:25]} e2 {[%clk 00:01:48]} {[%emt 00:00:10]} 62. Qc8+ {[%clk 00:01:00]}
{[%emt 00:00:13]} Kg7 {[%clk 00:02:08]} {[%emt 00:00:10]} 63. h8=Q+ {[%clk
00:01:21]} {[%emt 00:00:09]} Kxg6 {[%clk 00:02:23]} {[%emt 00:00:15]} 64. Qg4+
{[%clk 00:01:14]} {[%emt 00:00:37]} Kf7 {[%clk 00:02:35]} {[%emt 00:00:18]} 65.
Qh7+ {[%clk 00:00:40]} {[%emt 00:01:04]} Ke8 {[%clk 00:02:02]} {[%emt
00:01:04]} 66. Qgg8+ {[%clk 00:01:01]} {[%emt 00:00:08]} Qf8 {[%clk 00:02:27]}
{[%emt 00:00:05]} 67. Qxf8+ {[%clk 00:01:27]} {[%emt 00:00:04]} 1-0

[Event "ONJK 2024 ABC"]
[Site "Velp, Netherlands"]
[Date "2024.08.05"]
[Round "5.14"]
[White "De Jong, Lode"]
[Black "De Wit, Evan"]
[Result "1/2-1/2"]
[TimeControl "90 minutes + 30 seconds"]
[WhiteElo "1755"]
[BlackElo "1782"]

1. d4 {[%clk 01:30:59]} {[%emt 00:00:01]} Nf6 {[%clk 01:30:47]} {[%emt
00:00:10]} 2. c4 {[%clk 01:31:28]} {[%emt 00:00:05]} e6 {[%clk 01:31:07]}
{[%emt 00:00:08]} 3. g3 {[%clk 01:31:55]} {[%emt 00:00:04]} d5 {[%clk
01:31:27]} {[%emt 00:00:10]} 4. Nf3 {[%clk 01:32:21]} {[%emt 00:00:04]} dxc4
{[%clk 01:31:49]} {[%emt 00:00:07]} 5. Bg2 {[%clk 01:32:47]} {[%emt 00:00:05]}
Bb4+ {[%clk 01:32:07]} {[%emt 00:00:12]} 6. Bd2 {[%clk 01:33:09]} {[%emt
00:00:08]} a5 {[%clk 01:32:16]} {[%emt 00:00:21]} 7. O-O {[%clk 01:32:52]}
{[%emt 00:00:48]} O-O {[%clk 01:32:39]} {[%emt 00:00:06]} 8. Qc2 {[%clk
01:32:56]} {[%emt 00:00:26]} Nc6 {[%clk 01:32:33]} {[%emt 00:00:35]} 9. Rd1
{[%clk 01:30:30]} {[%emt 00:02:57]} Qe7 {[%clk 01:31:38]} {[%emt 00:01:24]} 10.
Bf4 {[%clk 01:26:47]} {[%emt 00:04:13]} Bd6 {[%clk 01:30:00]} {[%emt 00:02:08]}
11. Bxd6 {[%clk 01:25:59]} {[%emt 00:01:19]} cxd6 {[%clk 01:30:23]} {[%emt
00:00:06]} 12. Qxc4 {[%clk 01:26:14]} {[%emt 00:00:15]} e5 {[%clk 01:30:10]}
{[%emt 00:00:42]} 13. d5 {[%clk 01:24:02]} {[%emt 00:02:42]} Nb8 {[%clk
01:30:12]} {[%emt 00:00:27]} 14. e4 {[%clk 01:22:45]} {[%emt 00:01:47]} Nbd7
{[%clk 01:29:57]} {[%emt 00:00:46]} 15. Nc3 {[%clk 01:22:45]} {[%emt 00:00:30]}
Nc5 {[%clk 01:29:52]} {[%emt 00:00:34]} 16. Ne1 {[%clk 01:20:24]} {[%emt
00:02:52]} Ng4 {[%clk 01:27:11]} {[%emt 00:03:10]} 17. Nd3 {[%clk 01:16:05]}
{[%emt 00:04:49]} Nxd3 {[%clk 01:27:28]} {[%emt 00:00:14]} 18. Qxd3 {[%clk
01:16:30]} {[%emt 00:00:05]} f5 {[%clk 01:27:48]} {[%emt 00:00:10]} 19. f3
{[%clk 01:16:53]} {[%emt 00:00:07]} Nh6 {[%clk 01:27:30]} {[%emt 00:00:48]} 20.
Rac1 {[%clk 01:16:10]} {[%emt 00:01:13]} f4 {[%clk 01:26:46]} {[%emt 00:01:13]}
21. Nb5 {[%clk 01:08:39]} {[%emt 00:08:02]} fxg3 {[%clk 01:26:45]} {[%emt
00:00:31]} 22. hxg3 {[%clk 01:09:03]} {[%emt 00:00:05]} Qg5 {[%clk 01:27:03]}
{[%emt 00:00:13]} 23. Nxd6 {[%clk 01:08:31]} {[%emt 00:01:03]} Qxg3 {[%clk
01:27:23]} {[%emt 00:00:09]} 24. Nxc8 {[%clk 01:08:39]} {[%emt 00:00:23]} Raxc8
{[%clk 01:25:30]} {[%emt 00:02:24]} 25. Rxc8 {[%clk 01:07:08]} {[%emt
00:02:00]} Rxc8 {[%clk 01:25:34]} {[%emt 00:00:25]} 26. d6 {[%clk 01:06:51]}
{[%emt 00:00:48]} Nf7 {[%clk 01:22:27]} {[%emt 00:03:37]} 27. d7 {[%clk
01:04:47]} {[%emt 00:02:34]} Rd8 {[%clk 01:22:47]} {[%emt 00:00:09]} 28. Qd5
{[%clk 01:00:01]} {[%emt 00:05:16]} h5 {[%clk 01:21:12]} {[%emt 00:02:05]} 29.
Qe6 {[%clk 00:56:01]} {[%emt 00:04:31]} Kf8 {[%clk 01:19:43]} {[%emt 00:01:59]}
30. Rc1 {[%clk 00:49:52]} {[%emt 00:06:38]} Qg5 {[%clk 01:10:00]} {[%emt
00:10:13]} 31. Rc8 {[%clk 00:48:00]} {[%emt 00:02:22]} Qe3+ {[%emt 00:00:21]}
32. Kh2 {[%emt 00:00:01]} Qe1 {[%emt 00:00:02]} 33. Qh3 {[%emt 00:00:06]}
1/2-1/2

[Event "ONJK 2024 ABC"]
[Site "Velp, Netherlands"]
[Date "2024.08.05"]
[Round "5.15"]
[White "Burger, Dominick"]
[Black "Dijkhuijsen, Thomas"]
[Result "0-1"]
[TimeControl "90 minutes + 30 seconds"]
[WhiteElo "1686"]
[BlackElo "1750"]

1. e4 {[%emt 00:00:32]} c5 {[%clk 01:30:55]} {[%emt 00:00:04]} 2. Nf3 {[%clk
01:30:47]} {[%emt 00:00:13]} d6 {[%clk 01:31:20]} {[%emt 00:00:05]} 3. c3
{[%clk 01:29:46]} {[%emt 00:01:32]} Nf6 {[%clk 01:31:41]} {[%emt 00:00:07]} 4.
Qc2 {[%clk 01:30:13]} {[%emt 00:00:04]} Qc7 {[%clk 01:31:58]} {[%emt 00:00:13]}
5. Bc4 {[%clk 01:30:03]} {[%emt 00:00:40]} e6 {[%clk 01:31:22]} {[%emt
00:01:05]} 6. d4 {[%clk 01:30:14]} {[%emt 00:00:19]} cxd4 {[%clk 01:29:18]}
{[%emt 00:02:34]} 7. cxd4 {[%clk 01:30:28]} {[%emt 00:00:17]} Nbd7 {[%clk
01:28:06]} {[%emt 00:01:42]} 8. Ng5 {[%clk 01:30:15]} {[%emt 00:00:43]} Nxe4
{[%clk 01:21:06]} {[%emt 00:07:30]} 9. Nxf7 {[%clk 01:29:55]} {[%emt 00:00:50]}
Qa5+ {[%clk 01:16:48]} {[%emt 00:04:47]} 10. Kf1 {[%clk 01:29:14]} {[%emt
00:01:12]} Qf5 {[%clk 01:10:54]} {[%emt 00:06:24]} 11. f3 {[%clk 01:29:29]}
{[%emt 00:00:15]} 0-1

[Event "ONJK 2024 ABC"]
[Site "Velp, Netherlands"]
[Date "2024.08.05"]
[Round "5.16"]
[White "Hesse, Frederik"]
[Black "Vogels, Mathijs"]
[Result "1-0"]
[TimeControl "90 minutes + 30 seconds"]
[WhiteElo "1684"]
[BlackElo "1732"]

1. e4 {[%clk 01:30:40]} {[%emt 00:00:20]} e5 {[%clk 01:30:57]} {[%emt
00:00:04]} 2. Nf3 {[%clk 01:31:05]} {[%emt 00:00:05]} Nc6 {[%clk 01:31:21]}
{[%emt 00:00:06]} 3. Bb5 {[%clk 01:31:29]} {[%emt 00:00:06]} d6 {[%clk
01:31:46]} {[%emt 00:00:05]} 4. O-O {[%clk 01:31:34]} {[%emt 00:00:25]} Nf6
{[%clk 01:32:09]} {[%emt 00:00:06]} 5. Re1 {[%clk 01:31:58]} {[%emt 00:00:07]}
Be7 {[%clk 01:32:34]} {[%emt 00:00:05]} 6. c3 {[%clk 01:31:42]} {[%emt
00:00:46]} O-O {[%clk 01:32:44]} {[%emt 00:00:20]} 7. h3 {[%clk 01:32:07]}
{[%emt 00:00:05]} a6 {[%clk 01:32:19]} {[%emt 00:00:55]} 8. Ba4 {[%clk
01:32:31]} {[%emt 00:00:07]} b5 {[%clk 01:32:43]} {[%emt 00:00:06]} 9. Bc2
{[%clk 01:32:43]} {[%emt 00:00:18]} Bb7 {[%clk 01:33:04]} {[%emt 00:00:10]} 10.
d4 {[%clk 01:33:03]} {[%emt 00:00:09]} exd4 {[%clk 01:33:27]} {[%emt 00:00:07]}
11. cxd4 {[%emt 00:00:42]} Nb4 {[%clk 01:32:55]} {[%emt 00:00:23]} 12. e5
{[%clk 01:31:09]} {[%emt 00:02:51]} Bxf3 {[%clk 01:33:01]} {[%emt 00:00:24]} 13.
gxf3 {[%clk 01:31:05]} {[%emt 00:00:34]} dxe5 {[%clk 01:32:03]} {[%emt
00:01:27]} 14. dxe5 {[%clk 01:30:38]} {[%emt 00:00:59]} Qxd1 {[%clk 01:31:06]}
{[%emt 00:01:26]} 15. Bxd1 {[%clk 01:31:00]} {[%emt 00:00:07]} Nd7 {[%clk
01:30:13]} {[%emt 00:01:23]} 16. Nc3 {[%clk 01:29:38]} {[%emt 00:01:53]} Nd3
{[%clk 01:30:20]} {[%emt 00:00:22]} 17. Re2 {[%clk 01:29:05]} {[%emt 00:01:03]}
N3xe5 {[%clk 01:29:39]} {[%emt 00:01:12]} 18. f4 {[%clk 01:28:33]} {[%emt
00:01:02]} Nc6 {[%clk 01:28:06]} {[%emt 00:02:01]} 19. Rd2 {[%clk 01:26:34]}
{[%emt 00:02:31]} Nb6 {[%clk 01:28:05]} {[%emt 00:00:30]} 20. Bf3 {[%clk
01:26:33]} {[%emt 00:00:31]} Na5 {[%clk 01:21:58]} {[%emt 00:06:38]} 21. Bxa8
{[%clk 01:26:28]} {[%emt 00:00:35]} Rxa8 {[%clk 01:22:23]} {[%emt 00:00:05]} 22.
Nd5 {[%clk 01:25:42]} {[%emt 00:01:16]} Nxd5 {[%clk 01:22:28]} {[%emt
00:00:25]} 23. Rxd5 {[%clk 01:26:03]} {[%emt 00:00:09]} c6 {[%clk 01:22:40]}
{[%emt 00:00:18]} 24. Rd7 {[%clk 01:26:06]} {[%emt 00:00:24]} Bf6 {[%clk
01:22:45]} {[%emt 00:00:27]} 25. Rb1 {[%clk 01:25:45]} {[%emt 00:00:51]} Kf8
{[%clk 01:21:39]} {[%emt 00:01:36]} 26. b3 {[%clk 01:25:35]} {[%emt 00:00:41]}
Ke8 {[%clk 01:21:29]} {[%emt 00:00:39]} 27. Rd3 {[%clk 01:24:58]} {[%emt
00:01:06]} Rd8 {[%clk 01:19:42]} {[%emt 00:02:19]} 28. Re3+ {[%clk 01:25:02]}
{[%emt 00:00:26]} Kf8 {[%clk 01:19:40]} {[%emt 00:00:31]} 29. Ba3+ {[%clk
01:25:22]} {[%emt 00:00:10]} Kg8 {[%clk 01:20:01]} {[%emt 00:00:09]} 30. Rbe1
{[%clk 01:25:30]} {[%emt 00:00:22]} g6 {[%clk 01:17:54]} {[%emt 00:02:37]} 31.
Re8+ {[%clk 01:25:25]} {[%emt 00:00:35]} Kg7 {[%clk 01:17:26]} {[%emt
00:00:58]} 32. Rxd8 {[%clk 01:25:02]} {[%emt 00:00:53]} Bxd8 {[%clk 01:17:44]}
{[%emt 00:00:11]} 33. Bb2+ {[%clk 01:25:19]} {[%emt 00:00:13]} Kf8 {[%clk
01:17:35]} {[%emt 00:00:38]} 34. Ba3+ {[%clk 01:25:41]} {[%emt 00:00:09]} Kg7
{[%clk 01:17:44]} {[%emt 00:00:21]} 35. Rd1 {[%clk 01:26:09]} {[%emt 00:00:02]}
Bf6 {[%clk 01:17:10]} {[%emt 00:01:04]} 36. Rc1 {[%clk 01:24:58]} {[%emt
00:01:41]} Bd4 {[%clk 01:14:59]} {[%emt 00:02:41]} 37. Bb4 {[%clk 01:24:41]}
{[%emt 00:00:48]} Nb7 {[%clk 01:14:44]} {[%emt 00:00:45]} 38. Rxc6 {[%clk
01:24:58]} {[%emt 00:00:13]} a5 {[%clk 01:15:02]} {[%emt 00:00:12]} 39. Bc3
{[%clk 01:24:06]} {[%emt 00:01:22]} Bxc3 {[%clk 01:15:20]} {[%emt 00:00:12]} 40.
Rxc3 {[%clk 01:24:30]} {[%emt 00:00:06]} a4 {[%clk 01:15:02]} {[%emt 00:00:47]}
41. bxa4 {[%clk 01:24:15]} {[%emt 00:00:46]} bxa4 {[%clk 01:15:25]} {[%emt
00:00:07]} 42. Rc4 {[%clk 01:24:37]} {[%emt 00:00:08]} Kf6 {[%clk 01:15:33]}
{[%emt 00:00:21]} 43. Rxa4 {[%clk 01:24:46]} {[%emt 00:00:22]} Ke6 {[%clk
01:15:31]} {[%emt 00:00:31]} 44. Kg2 {[%clk 01:25:04]} {[%emt 00:00:13]} h5
{[%clk 01:15:34]} {[%emt 00:00:27]} 45. Kg3 {[%clk 01:25:21]} {[%emt 00:00:12]}
Nc5 {[%clk 01:15:44]} {[%emt 00:00:19]} 46. Rd4 {[%clk 01:25:05]} {[%emt
00:00:43]} f6 {[%clk 01:15:04]} {[%emt 00:01:14]} 47. Kh4 {[%clk 01:24:19]}
{[%emt 00:01:15]} Nd7 {[%clk 01:14:28]} {[%emt 00:01:08]} 48. f5+ {[%clk
01:23:42]} {[%emt 00:01:07]} gxf5 {[%clk 01:14:47]} {[%emt 00:00:11]} 49. Kxh5
{[%clk 01:23:52]} {[%emt 00:00:21]} Ne5 {[%clk 01:15:05]} {[%emt 00:00:11]} 50.
a4 {[%clk 01:23:32]} {[%emt 00:00:50]} Ke7 {[%clk 01:14:42]} {[%emt 00:00:53]}
51. Kh6 {[%clk 01:22:50]} {[%emt 00:01:08]} Nf7+ {[%clk 01:14:39]} {[%emt
00:00:36]} 52. Kg7 {[%clk 01:23:02]} {[%emt 00:00:16]} Ng5 {[%clk 01:14:58]}
{[%emt 00:00:14]} 53. Rd3 {[%clk 01:22:15]} {[%emt 00:01:17]} Ne6 {[%clk
01:15:09]} {[%emt 00:00:19]} 54. Kg8 {[%clk 01:22:26]} {[%emt 00:00:16]} Nc5
{[%clk 01:15:23]} {[%emt 00:00:18]} 55. Re3+ {[%clk 01:21:55]} {[%emt
00:01:01]} Kd6 {[%clk 01:14:06]} {[%emt 00:01:46]} 56. a5 {[%clk 01:22:05]}
{[%emt 00:00:22]} f4 {[%clk 01:14:14]} {[%emt 00:00:21]} 57. Re2 {[%clk
01:21:46]} {[%emt 00:00:47]} Kd5 {[%clk 01:13:27]} {[%emt 00:01:19]} 58. Kf7
{[%clk 01:22:00]} {[%emt 00:00:16]} Kd4 {[%clk 01:13:33]} {[%emt 00:00:25]} 59.
Kxf6 {[%clk 01:22:03]} {[%emt 00:00:27]} Kd3 {[%clk 01:13:45]} {[%emt
00:00:18]} 60. Re8 {[%clk 01:22:20]} {[%emt 00:00:11]} Kc4 {[%clk 01:13:59]}
{[%emt 00:00:17]} 61. Kg5 {[%clk 01:22:06]} {[%emt 00:00:44]} Kb5 {[%clk
01:14:07]} {[%emt 00:00:23]} 62. Re5 {[%clk 01:22:15]} {[%emt 00:00:21]} Kc6
{[%clk 01:14:05]} {[%emt 00:00:31]} 63. Rxc5+ {[%clk 01:22:33]} {[%emt
00:00:14]} 1-0